bitfinex-derivatives/quotes_SOLF0:USTF0_20250911
["timestamp","ask_amount","ask_price","bid_price","bid_amount"]
[1757603085009,6.87,226.96,226.76,7.14]
[1757603085216,10.33119228,226.95,226.77,7.14]
[1757603085515,3.75205939,226.94,226.77,7.4132444]
[1757603085717,3.75205939,226.93,226.79,7.14]
[1757603086010,6.87,226.96,226.79,7.14]
[1757603086214,3.75159197,226.95,226.81,7.14]
[1757603086409,3.75159197,226.94,226.81,7.14]
[1757603086610,6.87,226.96,226.81,7.14]
[1757603086809,3.64626813,226.95,226.81,7.14]
[1757603087016,6.87,226.96,226.81,7.14]
[1757603087212,3.64626711,226.95,226.81,7.14]
[1757603087412,6.87,226.96,226.81,7.14]
[1757603087713,3.64043024,226.95,226.81,7.14]
[1757603087914,6.87,226.96,226.81,7.14]
[1757603088216,3.64043085,226.95,226.81,7.14]
[1757603088416,6.87,226.96,226.81,7.14]
[1757603088614,3.64032949,226.95,226.81,7.14]
[1757603088817,6.87,226.96,226.81,7.14]
[1757603089016,6.87,226.96,226.82,7.14]
[1757603089218,6.87,226.96,226.84,7.14]
[1757603090213,6.87,226.9,226.75,7.4132444]
[1757603090415,5.21887956,226.86,226.72,7.14]
[1757603090612,17.09084182,226.85,226.72,7.14]
[1757603090921,10.28502069,226.84,226.72,7.14]
[1757603091113,7.16261103,226.83,226.72,7.14]
[1757603091320,3.63967264,226.82,226.72,7.14]
[1757603091523,3.63967264,226.81,226.72,7.14]
[1757603091814,10.50967264,226.8,226.72,7.14]
[1757603092019,6.87,226.78,226.67,7.14]
[1757603092219,3.63967264,226.77,226.67,7.14]
[1757603092420,6.87,226.78,226.67,7.14]
[1757603092620,3.86386477,226.77,226.67,7.14]
[1757603092817,3.8636227,226.76,226.67,7.14]
[1757603093021,6.87,226.78,226.67,7.14]
[1757603094821,12.08887956,226.83,226.67,7.14]
[1757603095023,3.86065076,226.82,226.67,7.14]
[1757603095219,3.86065076,226.81,226.67,7.14]
[1757603095415,6.87,226.83,226.67,7.14]
[1757603095616,3.85991524,226.82,226.67,7.14]
[1757603095818,3.85991524,226.81,226.67,7.14]
[1757603096118,6.87,226.83,226.67,7.14]
[1757603097021,3.85928483,226.82,226.67,7.14]
[1757603097222,6.87,226.83,226.67,7.14]
[1757603097423,3.85894261,226.82,226.67,7.14]
[1757603097617,6.87,226.83,226.67,7.14]
[1757603097824,3.85894261,226.82,226.67,7.14]
[1757603098018,6.87,226.83,226.67,7.14]
[1757603098218,3.85853647,226.82,226.67,7.14]
[1757603098418,6.87,226.83,226.67,7.14]
[1757603098625,3.85858831,226.82,226.67,7.14]
[1757603098822,6.87,226.83,226.67,7.14]
[1757603099021,3.85858831,226.82,226.67,7.14]
[1757603099228,6.87,226.83,226.67,7.14]
[1757603100326,3.85793823,226.82,226.67,7.14]
[1757603100521,6.87,226.83,226.67,7.14]
[1757603100725,3.85793823,226.82,226.67,7.14]
[1757603101019,6.87,226.83,226.67,7.14]
[1757603101827,6.87,226.83,226.69,6.99]
[1757603105631,6.87,226.83,226.7,68.8]
[1757603106332,6.87,226.83,226.71,6.99]
[1757603107231,6.87,226.83,226.72,99.5]
[1757603107432,6.87,226.83,226.73,174.92]
[1757603108431,2.19444312,226.78,226.71,112.88]
[1757603108623,2.19444312,226.75,226.67,6.99]
[1757603109934,7.07,226.77,226.67,6.99]
[1757603110134,2.19444312,226.74,226.67,6.99]
[1757603110432,7.07,226.77,226.67,6.99]
[1757603110730,5.22761305,226.81,226.64,13.34225878]
[1757603110934,3.85455261,226.8,226.65,112.88]
[1757603111136,7.07,226.78,226.65,112.88]
[1757603111335,7.07,226.8,226.65,112.88]
[1757603111526,3.85388264,226.79,226.65,112.88]
[1757603111731,5.22761305,226.81,226.65,112.86]
[1757603111931,3.85290429,226.8,226.65,112.86]
[1757603112132,7.07,226.78,226.65,112.86]
[1757603113028,8.6487739,226.82,226.63,173.9808196]
[1757603113226,7.07,226.8,226.64,112.78]
[1757603113432,7.07,226.78,226.64,112.78]
[1757603113628,8.6487739,226.82,226.64,13.08204005]
[1757603113834,10.70364118,226.81,226.63,267.9008196]
[1757603114032,8.6487739,226.76,226.6,112.76]
[1757603114232,7.07,226.74,226.58,6.99]
[1757603114434,7.07,226.72,226.58,67.87]
[1757603114632,7.07,226.72,226.59,6.99]
[1757603116037,7.07,226.81,226.59,6.99]
[1757603116337,7.07,226.79,226.59,6.99]
[1757603116536,7.07,226.77,226.59,6.99]
[1757603116939,7.07,226.77,226.61,6.99]
[1757603117534,15.7187739,226.82,226.61,6.99]
[1757603117841,3.89185294,226.81,226.61,6.99]
[1757603118132,7.07,226.82,226.62,7.4132444]
[1757603118335,7.07,226.82,226.63,6.99]
[1757603118633,7.07,226.82,226.58,74.00917997]
[1757603118634,7.07,226.87,226.64,7.4132444]
[1757603118839,3.89078613,226.86,226.65,6.99]
[1757603119036,3.89078613,226.85,226.67,6.99]
[1757603119238,3.89078613,226.84,226.67,6.99]
[1757603119435,7.07,226.87,226.67,6.99]
[1757603119738,3.89163696,226.86,226.67,6.99]
[1757603119938,10.96142732,226.85,226.67,6.99]
[1757603120133,7.07,226.85,226.67,6.99]
[1757603120331,7.07,226.92,226.69,6.99]
[1757603120532,7.07,226.9,226.69,6.99]
[1757603120734,8.6487739,226.94,226.69,6.99]
[1757603120735,7.07,226.88,226.69,6.99]
[1757603120939,7.07,226.86,226.69,6.99]
[1757603123238,7.07,226.86,226.71,6.99]
[1757603123942,7.07,226.86,226.72,6.99]
[1757603124137,7.07,226.86,226.73,35.56]
[1757603124339,7.07,226.86,226.74,6.99]
[1757603125136,7.07,226.93,226.75,55.98]
[1757603125443,10.73220512,226.92,226.75,55.98]
[1757603125639,10.73220512,226.91,226.75,55.98]
[1757603125836,7.07,226.89,226.75,55.98]
[1757603126142,8.6487739,226.94,226.75,55.98]
[1757603126143,7.07,226.87,226.75,55.98]
[1757603126344,3.89349858,226.86,226.75,55.98]
[1757603126646,7.07,226.87,226.75,55.98]
[1757603126837,3.89369335,226.86,226.75,55.98]
[1757603127145,7.07,226.87,226.75,55.98]
[1757603127445,3.89385664,226.86,226.75,55.98]
[1757603127645,8.6487739,226.94,226.75,55.98]
[1757603127847,6.93,226.92,226.75,55.98]
[1757603128041,6.93,226.9,226.75,55.98]
[1757603128243,6.93,226.88,226.75,55.98]
[1757603128541,6.93,226.86,226.74,6.99]
[1757603128844,6.93,226.84,226.7,115.52]
[1757603129034,8.6487739,226.88,226.7,115.52]
[1757603129234,6.93,226.86,226.7,115.52]
[1757603129442,6.93,226.84,226.7,115.52]
[1757603129636,8.6487739,226.88,226.7,115.52]
[1757603129842,6.93,226.86,226.7,115.52]
[1757603130042,6.93,226.84,226.7,115.52]
[1757603130246,6.93,226.87,226.7,115.52]
[1757603130444,3.89511481,226.86,226.7,115.52]
[1757603130648,6.93,226.84,226.7,115.52]
[1757603130843,6.93,226.87,226.7,115.52]
[1757603131050,8.6487739,226.82,226.65,7.52]
[1757603131241,6.93,226.8,226.64,296.22]
[1757603131545,6.93,226.78,226.65,7.52]
[1757603131740,6.93,226.76,226.65,7.52]
[1757603131946,3.89738237,226.75,226.65,7.52]
[1757603132247,6.93,226.73,226.64,296.22]
[1757603132452,6.93,226.73,226.6,119.92]
[1757603132650,3.89858669,226.72,226.6,119.92]
[1757603132855,6.93,226.73,226.6,119.92]
[1757603133047,3.89863944,226.72,226.6,119.92]
[1757603133352,6.93,226.73,226.6,119.92]
[1757603133651,3.89868063,226.72,226.6,119.92]
[1757603133951,6.93,226.73,226.6,119.92]
[1757603134148,6.93,226.71,226.6,7.52]
[1757603134451,6.93,226.69,226.57,76.56]
[1757603134650,3.8982833,226.68,226.57,76.56]
[1757603134852,6.93,226.69,226.57,76.56]
[1757603134853,3.8982833,226.67,226.57,76.56]
[1757603135049,6.93,226.69,226.57,76.56]
[1757603135248,3.89655815,226.68,226.57,76.56]
[1757603135547,6.93,226.69,226.57,76.56]
[1757603135848,15.5787739,226.74,226.58,7.52]
[1757603136048,3.89652097,226.73,226.58,7.52]
[1757603136252,6.93,226.74,226.58,7.52]
[1757603136253,3.89652097,226.72,226.58,7.52]
[1757603136553,3.89652097,226.71,226.58,7.52]
[1757603136758,6.93,226.79,226.6,7.52]
[1757603137054,6.93,226.79,226.61,7.52]
[1757603137252,6.93,226.79,226.63,7.52]
[1757603138849,3.78826796,226.78,226.63,7.52]
[1757603139054,6.93,226.79,226.63,7.52]
[1757603139251,3.78811149,226.78,226.63,7.52]
[1757603139452,6.93,226.79,226.63,7.52]
[1757603139651,3.78825093,226.78,226.63,7.52]
[1757603139857,6.93,226.79,226.63,7.52]
[1757603140157,6.93,226.77,226.63,7.52]
[1757603143857,6.93,226.77,226.65,7.52]
[1757603147560,6.93,226.77,226.59,7.52]
[1757603147759,55.3887739,226.86,226.62,96.06]
[1757603147956,10.60338695,226.85,226.62,96.06]
[1757603148158,6.93,226.83,226.62,103.58]
[1757603148354,10.60338695,226.82,226.62,103.58]
[1757603148560,6.93,226.8,226.62,103.58]
[1757603148860,3.76382817,226.79,226.62,103.58]
[1757603149057,6.93,226.77,226.62,103.58]
[1757603149761,55.3887739,226.86,226.62,103.58]
[1757603149957,6.93,226.84,226.62,103.58]
[1757603150158,10.60299662,226.83,226.62,103.58]
[1757603150358,6.93,226.81,226.62,103.58]
[1757603150559,6.93,226.79,226.62,103.58]
[1757603150760,6.93,226.77,226.62,103.58]
[1757603151160,6.93,226.85,226.62,103.58]
[1757603151362,6.93,226.83,226.62,103.58]
[1757603151662,6.93,226.81,226.63,7.52]
[1757603151862,10.60428934,226.8,226.63,7.52]
[1757603152159,3.76410981,226.79,226.63,7.52]
[1757603152363,10.69410981,226.78,226.63,7.52]
[1757603152661,6.93,226.78,226.63,7.52]
[1757603152858,6.93,226.84,226.65,7.52]
[1757603153060,6.93,226.84,226.7,7.52]
[1757603153260,6.93,226.84,226.72,7.52]
[1757603154861,6.93,226.92,226.74,7.52]
[1757603155158,3.64133674,226.91,226.74,7.52]
[1757603155361,6.93,226.92,226.74,7.52]
[1757603155659,3.64057734,226.91,226.74,7.52]
[1757603155860,6.93,226.92,226.74,7.52]
[1757603156056,3.64057747,226.91,226.74,7.52]
[1757603156365,6.93,226.92,226.74,7.52]
[1757603156564,3.63987196,226.91,226.74,7.52]
[1757603156766,3.63990662,226.9,226.74,7.52]
[1757603157069,6.93,226.98,226.76,7.52]
[1757603157268,6.93,226.96,226.76,7.52]
[1757603157468,7.53,226.94,226.76,7.52]
[1757603157657,10.39102967,226.93,226.76,7.52]
[1757603157862,3.6399425,226.92,226.76,7.52]
[1757603158164,3.6399425,226.91,226.76,7.52]
[1757603158466,7.53,226.94,226.78,7.24]
[1757603158655,3.63835083,226.93,226.78,7.24]
[1757603158860,3.63835083,226.92,226.78,7.24]
[1757603159069,7.53,226.94,226.78,7.24]
[1757603160268,123.5125704,226.99,226.78,7.24]
[1757603160564,6.73300857,226.98,226.78,7.24]
[1757603160766,3.63729319,226.97,226.78,7.24]
[1757603160967,123.5125704,226.99,226.78,7.24]
[1757603162270,123.5125704,226.99,226.79,107.2]
[1757603162571,7.53,226.98,226.81,7.24]
[1757603163966,304.95482906,227.07,226.82,36.56]
[1757603164163,7.53,227.05,226.81,7.24]
[1757603164369,8.63482906,227.01,226.81,7.24]
[1757603164568,11.15934266,227.0,226.82,6.28]
[1757603164770,7.53,226.98,226.82,6.28]
[1757603165269,7.53,226.98,226.83,7.24]
[1757603171468,7.53,227.06,226.83,7.24]
[1757603171673,7.53,227.04,226.83,7.24]
[1757603171975,7.53,227.04,226.84,7.24]
[1757603173571,7.53,227.04,226.85,62.0]
[1757603173767,7.53,227.04,226.86,7.24]
[1757603175566,7.53,227.1,226.88,7.24]
[1757603176279,113.65741129,227.15,226.89,111.98]
[1757603176472,7.53,227.13,226.9,7.24]
[1757603176673,7.53,227.1,226.9,7.24]
[1757603178370,5.21499614,227.11,226.9,7.24]
[1757603178573,7.53,227.04,226.89,112.12]
[1757603179878,7.53,227.04,226.9,7.24]
[1757603180068,7.53,227.04,226.9,20.15506107]
[1757603180272,7.53,227.04,226.9,7.24]
[1757603180674,7.53,226.99,226.87,112.1]
[1757603180974,5.21499614,227.0,226.86,112.1]
[1757603181568,7.53,226.99,226.84,20.67008693]
[1757603181772,5.21499614,227.0,226.85,112.12]
[1757603182175,7.53,226.99,226.85,112.12]
[1757603182375,5.21499614,227.0,226.85,112.12]
[1757603182571,7.53,226.99,226.86,7.24]
[1757603183374,7.53,227.04,226.86,7.24]
[1757603186081,7.53,227.04,226.88,7.24]
[1757603188775,7.31,227.09,226.88,7.24]
[1757603188979,3.64039661,227.08,226.89,111.86]
[1757603189182,7.31,227.06,226.88,7.24]
[1757603189380,7.31,227.04,226.89,41.6]
[1757603189578,7.31,227.09,226.9,81.36]
[1757603189784,7.31,227.07,226.9,81.36]
[1757603189981,7.31,227.05,226.9,81.36]
[1757603190182,5.21499614,227.1,226.9,81.36]
[1757603190383,7.31,227.08,226.91,7.54]
[1757603190586,7.31,227.06,226.91,7.54]
[1757603190788,7.31,227.04,226.91,7.54]
[1757603191181,7.31,227.04,226.92,111.78]
[1757603193089,7.31,227.04,226.93,7.54]
[1757603193483,7.31,227.04,226.93,119.22]
[1757603193683,5.21499614,227.1,226.93,119.22]
[1757603193881,5.21499614,227.05,226.85,62.0]
[1757603194080,7.31,227.03,226.86,55.42]
[1757603194286,2.19170124,226.95,226.86,55.42]
[1757603194885,2.19170124,226.95,226.87,111.68]
[1757603195183,2.19170124,226.92,226.87,111.68]
[1757603195382,2.19170124,226.92,226.84,13.43008693]
[1757603195688,2.19170124,226.92,226.86,111.7]
[1757603196390,7.31,226.93,226.85,111.68]
[1757603199287,3.66371012,226.92,226.85,111.68]
[1757603199484,7.31,226.93,226.85,111.68]
[1757603199688,3.66371053,226.92,226.85,111.68]
[1757603199888,7.31,226.93,226.85,111.68]
[1757603200089,3.66371012,226.92,226.85,111.68]
[1757603200292,7.31,226.93,226.85,111.68]
[1757603200984,7.31,226.91,226.83,296.12]
[1757603201182,3.66481636,226.9,226.83,296.12]
[1757603201387,7.31,226.95,226.81,111.6]
[1757603201589,5.22100185,226.82,226.71,7.31744051]
[1757603201781,5.22100185,226.77,226.64,12.92061506]
[1757603201986,5.22100185,226.72,226.57,7.54]
[1757603202291,10.97597607,226.71,226.57,7.54]
[1757603202592,3.66597607,226.7,226.57,7.54]
[1757603202890,7.31,226.71,226.57,134.81357884]
[1757603202891,3.66597607,226.69,226.57,134.81357884]
[1757603203189,3.66597607,226.68,226.57,121.84]
[1757603203382,7.31,226.71,226.57,121.84]
[1757603203583,3.65624346,226.7,226.57,121.84]
[1757603203781,3.65624346,226.69,226.57,121.84]
[1757603203982,3.65624346,226.68,226.57,121.84]
[1757603204183,7.31,226.71,226.57,121.84]
[1757603204383,3.65015455,226.7,226.57,121.84]
[1757603204590,3.65015455,226.69,226.57,121.84]
[1757603204793,7.31,226.71,226.57,121.84]
[1757603204988,7.31,226.66,226.51,7.54]
[1757603206293,7.31,226.66,226.51,20.74870053]
[1757603206491,7.31,226.66,226.51,7.54]
[1757603210094,7.31,226.66,226.51,20.83872675]
[1757603210284,7.31,226.66,226.51,7.54]
[1757603211896,5.22100185,226.67,226.5,114.28]
[1757603212199,7.31,226.61,226.5,114.28]
[1757603212589,7.31,226.61,226.38,7.54]
[1757603212590,7.31,226.59,226.38,7.54]
[1757603212791,7.31,226.59,226.23,7.31744051]
[1757603212792,7.31,226.49,226.35,13.03520794]
[1757603212995,7.31,226.49,226.34,7.54]
[1757603217998,5.22100185,226.5,226.34,7.54]
[1757603217999,7.21,226.56,226.34,7.54]
[1757603218394,7.21,226.49,226.24,7.4]
[1757603218596,7.14,226.52,226.26,7.4]
[1757603218900,7.21,226.45,226.26,7.4]
[1757603220599,7.21,226.45,226.28,7.4]
[1757603221000,7.21,226.45,226.3,7.4]
[1757603221395,7.21,226.49,226.31,117.38]
[1757603221600,7.21,226.49,226.32,7.4]
[1757603222899,5.22100185,226.5,226.33,83.52]
[1757603223091,7.21,226.49,226.32,7.4]
[1757603223296,7.21,226.49,226.32,94.66]
[1757603223905,7.21,226.49,226.32,7.4]
[1757603224604,15.76,226.55,226.28,10.76]
[1757603224605,5.22100185,226.45,226.28,10.76]
[1757603224902,7.21,226.44,226.29,7.4]
[1757603227001,7.21,226.44,226.3,117.18]
[1757603227203,7.21,226.44,226.29,7.4]
[1757603227404,7.21,226.44,226.3,7.4]
[1757603227601,5.22100185,226.52,226.3,7.4]
[1757603227805,7.21,226.51,226.3,7.4]
[1757603228102,5.22100185,226.47,226.3,7.4]
[1757603228310,7.21,226.46,226.3,7.4]
[1757603231108,5.22100185,226.51,226.3,7.4]
[1757603231109,7.21,226.51,226.3,7.4]
[1757603232503,7.21,226.51,226.31,33.22]
[1757603232701,7.21,226.5,226.32,7.4]
[1757603232907,7.21,226.5,226.33,18.4]
[1757603233105,7.21,226.5,226.34,7.4]
[1757603234311,7.21,226.5,226.35,92.32]
[1757603234509,7.21,226.5,226.35,116.84]
[1757603235110,7.21,226.5,226.36,7.4]
[1757603236603,7.21,226.49,226.32,14.66]
[1757603236803,8.66882844,226.51,226.32,14.66]
[1757603237011,8.66882844,226.51,226.31,7.4]
[1757603237012,10.76175215,226.5,226.31,7.4]
[1757603237216,7.21,226.48,226.31,7.4]
[1757603237410,8.66882844,226.51,226.24,13.56682032]
[1757603237411,7.21,226.46,226.24,13.56682032]
[1757603237607,10.762058,226.45,226.25,7.4]
[1757603237812,7.21,226.43,226.25,7.4]
[1757603238313,7.21,226.44,226.25,7.4]
[1757603238513,7.21,226.42,226.25,7.4]
[1757603239013,7.21,226.4,226.25,7.4]
[1757603240112,4.92514496,226.56,226.25,7.4]
[1757603240415,7.21,226.5,226.25,7.4]
[1757603240615,7.21,226.48,226.25,7.4]
[1757603240815,7.21,226.46,226.25,7.4]
[1757603241012,7.21,226.44,226.25,7.4]
[1757603241318,7.21,226.42,226.26,7.4]
[1757603241519,7.21,226.47,226.26,7.4]
[1757603241719,3.57897687,226.46,226.27,7.4]
[1757603241919,7.21,226.47,226.27,7.4]
[1757603242121,3.58309929,226.46,226.27,7.4]
[1757603242416,3.58309929,226.45,226.28,7.4]
[1757603242610,7.21,226.47,226.28,7.4]
[1757603242807,3.57424359,226.46,226.28,7.4]
[1757603243020,7.21,226.47,226.28,7.4]
[1757603243218,3.57424379,226.46,226.3,7.4]
[1757603243518,7.21,226.44,226.3,7.4]
[1757603243718,3.57424379,226.43,226.3,92.08]
[1757603243914,7.21,226.44,226.3,92.08]
[1757603244216,3.58627398,226.43,226.3,92.08]
[1757603244418,3.58627398,226.42,226.31,7.4]
[1757603244719,7.21,226.52,226.31,7.4]
[1757603245019,7.21,226.5,226.31,7.4]
[1757603245214,7.21,226.36,226.08,7.4]
[1757603245417,4.92514496,226.28,226.08,7.4]
[1757603245617,7.21,226.25,226.08,7.4]
[1757603245823,10.25307411,226.24,226.08,7.4]
[1757603246120,10.25307411,226.23,226.08,7.4]
[1757603246319,10.25307411,226.22,226.08,7.4]
[1757603246520,17.46307411,226.21,226.08,7.4]
[1757603246824,10.25307411,226.2,226.08,7.4]
[1757603247022,10.25307411,226.19,226.08,7.4]
[1757603247317,3.59582711,226.18,226.08,7.4]
[1757603247522,3.59582711,226.17,226.08,7.4]
[1757603247724,7.21,226.21,226.08,7.4]
[1757603247725,3.59582711,226.16,226.08,7.4]
[1757603247926,3.59582711,226.15,226.08,7.4]
[1757603248224,7.21,226.21,226.08,7.4]
[1757603248418,10.20953212,226.2,226.08,7.4]
[1757603248620,7.1253394,226.19,226.08,7.4]
[1757603248820,3.54900509,226.18,226.08,7.4]
[1757603249120,3.54900509,226.17,226.08,7.4]
[1757603249320,3.54900509,226.16,226.08,7.4]
[1757603249520,7.21,226.21,226.08,7.4]
[1757603249717,10.20308023,226.2,226.08,7.4]
[1757603250024,7.21,226.18,226.03,7.26]
[1757603250216,3.54673878,226.17,226.03,7.26]
[1757603250421,3.54673878,226.16,226.03,7.26]
[1757603250618,7.21,226.23,226.03,7.26]
[1757603250818,10.19619301,226.22,226.03,7.26]
[1757603251024,3.54443557,226.21,226.03,7.26]
[1757603251223,3.54443557,226.2,226.03,7.26]
[1757603251423,7.21,226.23,226.03,7.26]
[1757603251622,3.54273975,226.22,226.03,7.26]
[1757603251821,3.54273975,226.21,226.03,7.26]
[1757603252024,7.21,226.23,226.03,7.26]
[1757603252222,3.54253226,226.22,226.03,7.26]
[1757603252521,7.21,226.29,226.03,13.23]
[1757603252727,7.21,226.27,226.04,7.26]
[1757603252927,6.62111023,226.26,226.06,7.26]
[1757603253227,3.54256504,226.25,226.08,7.26]
[1757603253424,3.54256504,226.24,226.08,7.26]
[1757603253626,3.54256504,226.23,226.08,7.26]
[1757603253830,3.54256504,226.22,226.08,7.26]
[1757603254027,7.21,226.27,226.08,7.26]
[1757603254231,6.62222633,226.26,226.08,7.26]
[1757603254524,3.54318248,226.25,226.08,7.26]
[1757603254729,3.54318248,226.24,226.08,7.26]
[1757603254930,3.54318248,226.23,226.08,7.26]
[1757603255129,3.54318248,226.22,226.08,7.26]
[1757603255328,3.54318248,226.21,226.08,7.26]
[1757603255525,7.21,226.27,226.08,7.26]
[1757603255731,3.54510431,226.26,226.08,7.26]
[1757603256024,3.54510431,226.25,226.08,7.26]
[1757603256226,3.54510431,226.24,226.08,7.26]
[1757603256431,3.54510431,226.23,226.1,7.26]
[1757603256730,7.21,226.27,226.1,7.26]
[1757603256931,7.21,226.21,226.03,7.26]
[1757603257232,7.21,226.19,225.97,7.26]
[1757603257433,7.21,226.15,225.96,426.46]
[1757603257633,7.21,226.13,225.96,426.46]
[1757603257829,7.21,226.11,225.96,426.46]
[1757603258035,3.54652386,226.1,225.96,426.46]
[1757603258332,7.21,226.08,225.92,7.26]
[1757603258533,3.54652386,226.07,225.92,7.26]
[1757603258731,7.21,226.08,225.92,7.26]
[1757603258732,3.54652386,226.06,225.92,7.26]
[1757603258929,7.21,226.08,225.92,7.26]
[1757603259130,7.21,226.06,225.87,13.14920758]
[1757603259325,7.21,226.06,225.88,7.26]
[1757603261643,7.21,226.15,225.88,7.26]
[1757603261942,7.21,226.15,225.9,7.26]
[1757603262144,7.21,226.15,225.93,7.26]
[1757603263337,7.21,226.15,225.94,62.0]
[1757603263538,7.21,226.15,225.95,7.26]
[1757603265038,7.21,226.21,225.97,7.26]
[1757603265241,0.76981783,226.25,225.99,7.26]
[1757603265439,10.74318559,226.24,225.99,7.26]
[1757603265645,7.21,226.22,225.99,7.26]
[1757603266947,7.21,226.22,225.99,4.408]
[1757603267148,8.66882844,226.27,226.0,136.48]
[1757603267448,7.21,226.25,226.0,7.26]
[1757603267642,7.21,226.23,226.0,7.26]
[1757603268038,7.21,226.26,226.02,7.26]
[1757603271148,7.21,226.2,226.02,7.26]
[1757603272044,7.21,226.2,225.96,7.26]
[1757603277344,7.21,226.2,226.01,62.0]
[1757603277543,7.21,226.2,226.02,6.94]
[1757603279148,7.21,226.2,226.03,124.14]
[1757603279651,7.21,226.2,226.04,6.94]
[1757603280352,7.46,226.29,226.04,6.94]
[1757603280949,7.46,226.32,226.06,6.94]
[1757603281154,7.46,226.3,226.06,6.94]
[1757603281357,7.46,226.28,226.06,6.94]
[1757603284352,7.46,226.28,226.07,68.94]
[1757603284550,16.12882844,226.42,226.1,8.66882844]
[1757603284756,7.46,226.4,226.12,6.94]
[1757603284953,3.52972634,226.39,226.14,6.94]
[1757603285160,7.46,226.4,226.14,6.94]
[1757603285360,7.46,226.38,226.14,6.94]
[1757603286454,7.46,226.38,226.16,6.94]
[1757603286857,8.66882844,226.4,226.17,126.7]
[1757603287257,7.46,226.38,226.17,126.7]
[1757603287462,7.46,226.39,226.18,6.94]
[1757603287657,8.66882844,226.4,226.18,6.94]
[1757603287658,3.5334221,226.38,226.19,126.8]
[1757603287858,7.46,226.39,226.2,62.0]
[1757603288058,7.46,226.37,226.2,62.0]
[1757603288459,7.46,226.37,226.21,6.94]
[1757603289358,7.46,226.37,226.19,126.8]
[1757603289359,6.67951525,226.36,226.18,126.58]
[1757603289555,8.66882844,226.4,226.18,126.58]
[1757603289556,7.46,226.34,226.18,126.58]
[1757603290164,7.46,226.34,226.19,6.94]
[1757603291968,7.46,226.34,226.2,188.5]
[1757603292354,7.46,226.34,226.2,126.5]
[1757603293262,7.46,226.34,226.21,6.94]
[1757603293467,7.46,226.41,226.21,6.94]
[1757603293667,6.67659611,226.4,226.21,6.94]
[1757603293859,7.46,226.41,226.21,6.94]
[1757603295358,7.46,226.41,226.23,6.94]
[1757603298970,7.46,226.41,226.25,6.94]
[1757603299968,7.46,226.41,226.26,125.4]
[1757603300967,7.46,226.41,226.25,6.94]
[1757603301166,7.46,226.36,226.25,6.94]